bitfinex-derivatives/quotes_ETHF0:USTF0_20250125
["timestamp","ask_amount","ask_price","bid_price","bid_amount"]
[1737767381638,0.48652,3288.8,3288.5,2.34396093]
[1737767381829,0.48653,3288.8,3288.5,2.83052093]
[1737767382741,3.2078,3289.1,3288.5,2.34396093]
[1737767383039,0.48651,3288.9,3288.8,2.34396093]
[1737767384636,3.2078,3289.1,3288.8,2.34396093]
[1737767384637,0.48643,3289.4,3289.1,0.48647]
[1737767384833,1.4493,3289.7,3289.3,2.34396093]
[1737767385037,0.48638,3289.8,3289.6,2.34396093]
[1737767385235,0.48638,3289.8,3289.6,3.73786093]
[1737767386241,0.48639,3289.7,3289.6,3.73786093]
[1737767386441,0.48642,3289.5,3289.3,2.34396093]
[1737767386845,4.3341,3290.0,3289.3,2.34396093]
[1737767387033,0.4864,3289.7,3289.4,0.48642]
[1737767387237,0.4864,3289.7,3289.5,1.3939]
[1737767387638,4.3341,3290.0,3289.5,1.3939]
[1737767387943,0.4864,3289.6,3289.5,1.3939]
[1737767390136,4.3341,3290.0,3289.3,2.34396093]
[1737767390338,0.48642,3289.5,3289.3,2.34396093]
[1737767391741,0.48643,3289.4,3289.3,2.34396093]
[1737767392440,3.2078,3289.7,3289.0,2.34396093]
[1737767392747,4.3341,3290.0,3288.8,3.2078]
[1737767392748,0.4865,3288.9,3288.8,3.2078]
[1737767394640,0.48652,3288.8,3288.7,2.34396093]
[1737767394845,0.48656,3288.5,3288.4,2.34396093]
[1737767400340,0.48656,3288.5,3288.3,4.56765934]
[1737767400341,0.48658,3288.4,3288.3,3.21235934]
[1737767400541,1.88378,3288.4,3288.3,0.00455934]
[1737767401847,0.48668,3287.7,3287.6,4.77458367]
[1737767402451,3.42168,3287.7,3287.6,4.77458367]
[1737767404147,3.42168,3287.7,3287.6,2.53978367]
[1737767404346,0.48673,3287.4,3287.3,0.00455934]
[1737767404546,3.69453,3287.4,3287.3,0.00455934]
[1737767404947,8.2078,3287.4,3286.3,2.34396093]
[1737767405252,0.48686,3286.5,3286.4,3.2078]
[1737767405643,0.48686,3286.5,3286.0,3.81996093]
[1737767405644,2.8995,3286.8,3286.0,3.81996093]
[1737767405842,0.4869,3286.3,3286.0,3.81996093]
[1737767406055,0.4869,3286.3,3286.1,0.00303484]
[1737767406959,2.8995,3286.8,3286.1,0.00303484]
[1737767407153,0.4869,3286.2,3286.1,0.00303484]
[1737767407364,0.48689,3286.4,3286.1,0.00303484]
[1737767407558,0.48683,3286.7,3286.1,0.00303484]
[1737767407768,0.4869,3286.2,3286.1,0.00303484]
[1737767411465,0.4869,3286.2,3285.4,3.81966093]
[1737767411466,0.48716,3284.5,3284.2,2.34396093]
[1737767411667,3.2078,3285.0,3284.2,5.55176093]
[1737767411970,3.2078,3285.6,3284.7,2.34396093]
[1737767412264,3.2078,3285.6,3284.7,5.55176093]
[1737767412464,3.2078,3285.6,3284.7,2.34396093]
[1737767412666,0.48709,3285.0,3284.7,2.34396093]
[1737767413066,0.00456635,3285.5,3284.2,3.2078]
[1737767413067,0.48713,3284.7,3284.4,2.34396093]
[1737767413262,0.48716,3284.5,3284.4,2.34396093]
[1737767413465,0.48714,3284.6,3284.4,2.34396093]
[1737767413869,3.2078,3285.2,3284.4,2.34396093]
[1737767414072,3.2078,3285.2,3284.4,2.83113093]
[1737767414371,0.48711,3284.9,3284.4,2.83113093]
[1737767415367,3.2078,3285.2,3284.4,2.34396093]
[1737767415568,0.48716,3284.5,3284.1,6.03897093]
[1737767415775,0.48716,3284.5,3284.1,5.55176093]
[1737767415960,3.2078,3285.2,3284.1,5.55176093]
[1737767416161,0.48714,3284.6,3284.1,6.03897093]
[1737767416772,0.48714,3284.6,3284.2,0.4872]
[1737767417276,0.4872,3284.2,3284.1,3.2078]
[1737767417773,0.48722,3284.1,3283.9,1.3806]
[1737767418266,1.4316,3284.5,3283.9,1.3806]
[1737767418474,3.2078,3284.7,3284.4,2.34396093]
[1737767418668,4.6079,3285.4,3284.5,1.3787]
[1737767418869,4.6079,3285.4,3284.8,3.2078]
[1737767419068,0.48717,3284.5,3284.1,8.31566093]
[1737767419266,3.2078,3284.9,3284.1,5.10786093]
[1737767419467,0.48713,3284.7,3284.2,3.695]
[1737767420274,0.48714,3284.6,3284.2,3.695]
[1737767420670,0.48713,3284.7,3284.2,3.695]
[1737767421272,4.6286,3285.3,3284.4,2.34396093]
[1737767421474,0.48706,3285.2,3284.7,2.34396093]
[1737767421669,3.2078,3285.8,3285.0,5.55176093]
[1737767421872,0.48699,3285.6,3285.3,2.34396093]
[1737767422374,0.48699,3285.6,3285.4,1.4688]
[1737767423169,0.48699,3285.7,3285.4,1.4688]
[1737767423366,3.69477,3285.8,3285.4,1.95582]
[1737767423569,3.69477,3285.8,3285.4,1.4688]
[1737767423873,1.3721,3285.9,3285.4,5.16362]
[1737767423874,0.48696,3285.9,3285.4,5.16362]
[1737767424074,3.2078,3285.9,3285.0,2.34396093]
[1737767424277,0.48707,3285.1,3284.9,4.6766]
[1737767425374,0.48708,3285.0,3284.9,4.6766]
[1737767426977,2.8317,3285.4,3284.9,4.6766]
[1737767427185,0.48707,3285.1,3284.9,4.6766]
[1737767427874,0.48708,3285.0,3284.9,4.6766]
[1737767428476,0.48705,3285.3,3284.9,4.6766]
[1737767428671,0.48706,3285.2,3284.9,4.6766]
[1737767428878,0.48708,3285.0,3284.9,4.6766]
[1737767429177,3.21236635,3285.5,3284.9,4.6766]
[1737767429378,0.48706,3285.2,3284.9,5.1637]
[1737767429577,3.21236635,3285.5,3285.0,2.34396093]
[1737767429780,3.21236635,3285.5,3285.3,0.48703]
[1737767430479,0.00456635,3285.5,3285.4,0.48702]
[1737767431680,0.48704,3285.4,3285.1,0.48706]
[1737767432479,0.48704,3285.4,3285.0,2.83103093]
[1737767432677,0.00456635,3285.5,3285.0,2.34396093]
[1737767432877,0.48708,3285.0,3284.9,4.6766]
[1737767433273,7.567,3285.4,3284.9,4.6766]
[1737767433474,0.48708,3285.0,3284.9,4.6766]
[1737767434980,0.48708,3285.0,3284.9,3.2078]
[1737767435583,8.78458,3285.4,3284.4,5.55176093]
[1737767435584,0.48714,3284.6,3284.4,5.55176093]
[1737767436076,0.48714,3284.6,3284.4,3.2078]
[1737767436277,7.567,3285.4,3284.4,3.2078]
[1737767436471,0.48712,3284.8,3284.4,6.03892093]
[1737767436675,0.48712,3284.8,3284.4,5.55176093]
[1737767436875,4.6586,3285.4,3284.7,2.34396093]
[1737767437078,3.69483,3285.4,3285.0,2.34396093]
[1737767437284,3.2078,3285.4,3285.2,0.48705]
[1737767437481,0.00456635,3285.5,3285.1,2.7331]
[1737767437678,0.00456635,3285.5,3285.2,0.48705]
[1737767438280,0.00456635,3285.5,3285.3,2.34396093]
[1737767438779,0.00456635,3285.5,3285.4,0.48702]
[1737767438984,0.00456635,3285.5,3285.3,6.03879093]
[1737767439584,0.00456635,3285.5,3285.4,0.48702]
[1737767440978,0.00456635,3285.5,3285.3,5.55176093]
[1737767441181,0.00456635,3285.5,3285.4,0.48702]
[1737767441379,3.2078,3286.1,3285.4,5.0]
[1737767441581,2.7506,3286.5,3286.0,2.34396093]
[1737767441880,5.9584,3286.5,3285.7,2.34396093]
[1737767442078,0.48694,3286.0,3285.7,2.34396093]
[1737767442274,5.9584,3286.5,3285.7,3.71166093]
[1737767442479,5.9584,3286.5,3285.5,3.2078]
[1737767442680,0.48699,3285.6,3285.5,3.2078]
[1737767444385,0.48699,3285.7,3285.5,3.2078]
[1737767444580,1.22175635,3286.4,3285.5,3.2078]
[1737767444782,0.48698,3285.7,3285.5,3.2078]
[1737767445882,3.2078,3286.1,3285.5,3.2078]
[1737767445883,0.48699,3285.6,3285.5,3.2078]
[1737767446083,0.48699,3285.7,3285.5,3.2078]
[1737767447588,1.3787,3285.9,3285.5,3.69481]
[1737767447589,0.48697,3285.8,3285.5,3.69481]
[1737767448082,0.48698,3285.7,3285.5,3.2078]
[1737767448282,1.3787,3285.9,3285.5,3.2078]
[1737767448589,0.48699,3285.6,3285.5,3.2078]
[1737767451790,1.3377,3285.8,3285.5,3.2078]
[1737767452087,4.672,3286.0,3285.7,2.34396093]
[1737767452288,5.15894,3286.0,3285.7,2.34396093]
[1737767452486,5.15894,3286.0,3285.7,2.83094093]
[1737767453797,0.48695,3285.9,3285.7,2.34396093]
[1737767454094,5.15894,3286.0,3285.7,2.34396093]
[1737767454595,0.48695,3285.9,3285.7,2.34396093]
[1737767455095,0.48699,3285.6,3285.5,3.2078]
[1737767458494,0.48699,3285.6,3285.4,2.34396093]
[1737767458495,2.34396093,3285.9,3285.2,0.00456635]
[1737767458698,0.48704,3285.3,3285.2,0.00456635]
[1737767459991,0.48704,3285.3,3284.4,3.2078]
[1737767459992,0.48716,3284.5,3284.4,3.2078]
[1737767460397,0.48716,3284.5,3284.3,7.16187551]
[1737767460398,0.48717,3284.4,3284.3,7.16187551]
[1737767460697,0.48717,3284.4,3284.3,4.95987551]
[1737767460698,3.30897,3284.4,3284.3,4.95987551]
[1737767460889,3.30897,3284.4,3284.3,3.06565217]
[1737767462111,3.30897,3284.4,3284.1,9.54916735]
[1737767462112,0.4872,3284.2,3284.1,9.54916735]
[1737767462394,0.4872,3284.2,3283.9,11.30982654]
[1737767462601,5.55176093,3284.0,3283.0,5.18206093]
[1737767462795,0.48735,3283.2,3283.0,5.18206093]
[1737767463299,5.55176093,3284.0,3283.0,5.18206093]
[1737767463502,0.48735,3283.2,3283.0,5.18206093]
[1737767464702,0.48736,3283.1,3283.0,2.8381]
[1737767465198,3.2078,3283.6,3282.8,10.37170016]
[1737767465504,3.2078,3283.6,3282.8,7.16390016]
[1737767465505,0.48739,3282.9,3282.8,7.16390016]
[1737767466499,2.34396093,3283.1,3282.2,3.2078]
[1737767466707,0.48745,3282.6,3282.2,3.2078]
[1737767466899,0.48745,3282.6,3282.2,3.6953]
[1737767467291,0.48745,3282.6,3282.2,3.2078]
[1737767467603,0.00456635,3282.7,3282.2,3.2078]
[1737767467896,0.49199635,3282.7,3282.3,0.48747]
[1737767468101,0.00456635,3282.7,3282.3,0.48747]
[1737767468798,0.49198635,3282.7,3282.2,3.2078]
[1737767469003,0.48747,3282.4,3282.2,3.2078]
[1737767469202,0.48747,3282.4,3282.1,0.06093659]
[1737767469203,0.00456635,3282.7,3282.1,0.06093659]
[1737767469403,0.4875,3282.2,3282.1,0.06093659]
[1737767472008,3.6953,3282.2,3282.1,0.06093659]
[1737767474618,0.00456635,3282.7,3282.2,0.4875]
[1737767474807,0.00456635,3282.7,3282.6,3.2078]
[1737767476014,0.00456635,3282.7,3282.6,3.69524]
[1737767476215,0.00456635,3282.7,3282.6,3.2078]
[1737767476418,0.00456635,3282.7,3282.6,3.69524]
[1737767476619,0.00456635,3282.7,3282.6,3.2078]
[1737767476911,0.49198635,3282.7,3282.6,3.2078]
[1737767477118,0.48748,3282.3,3282.2,3.2078]
[1737767477516,0.00456635,3282.7,3281.8,5.55176093]
[1737767477517,0.48753,3282.0,3281.8,5.55176093]
[1737767477719,0.48753,3282.0,3281.9,1.4264]
[1737767478109,0.48748,3282.4,3282.0,0.48752]
[1737767478422,0.48749,3282.3,3282.0,1.4243]
[1737767479619,0.48749,3282.3,3282.2,3.2078]
[1737767481319,0.00456635,3282.7,3282.2,3.2078]
[1737767481320,0.48744,3282.6,3282.2,3.2078]
[1737767481514,0.00456635,3282.7,3282.2,3.2078]
[1737767482220,0.48748,3282.4,3282.2,3.2078]
[1737767483514,0.49199635,3282.7,3282.3,0.48747]
[1737767483716,0.49199635,3282.7,3282.4,1.3247]
[1737767484017,0.00456635,3282.7,3282.6,0.48744]
[1737767484217,0.00456635,3282.7,3282.5,0.48744]
[1737767484407,0.00456635,3282.7,3282.6,1.4354]
[1737767485413,0.49198635,3282.7,3282.6,1.4354]
[1737767485929,0.48751,3282.1,3281.8,5.55176093]
[1737767488119,1.3877,3282.6,3281.8,5.55176093]
[1737767488320,0.48754,3281.9,3281.8,3.2078]
[1737767489014,0.4875,3282.2,3281.8,6.03931093]
[1737767489222,3.21236635,3282.7,3282.1,2.34396093]
[1737767489421,3.21236635,3282.7,3282.1,2.83146093]
[1737767489620,0.48746,3282.5,3282.2,1.4194]
[1737767489820,0.48746,3282.5,3282.3,1.3597]
[1737767490019,0.48746,3282.5,3282.4,1.4012]
[1737767491424,0.00456635,3282.7,3282.6,0.48744]
[1737767491614,0.48735,3283.3,3282.6,3.2078]
[1737767491814,3.2078,3283.7,3282.8,0.4874]
[1737767492015,0.48736,3283.2,3282.8,0.4874]
[1737767492214,0.48738,3283.0,3282.9,1.4279]
[1737767492620,2.34396093,3283.4,3282.4,1.4012]
[1737767492823,0.48742,3282.7,3282.6,0.00456635]
[1737767500526,0.48742,3282.7,3282.6,3.21236635]
[1737767501026,0.00456635,3283.3,3282.6,3.21236635]
[1737767501227,0.48737,3283.1,3282.8,0.4874]
[1737767501428,0.00456635,3283.3,3282.7,1.4329]
[1737767501620,0.48741,3282.8,3282.7,1.4329]
[1737767502519,0.00456635,3283.3,3282.7,1.4329]
[1737767502719,0.00456635,3283.3,3283.2,0.48735]
[1737767503425,0.00456635,3283.3,3283.1,3.38046]
[1737767503622,0.00456635,3283.3,3283.2,0.48735]
[1737767504030,0.00456635,3283.3,3283.1,2.8931]
[1737767504332,0.48735,3283.2,3283.1,2.8931]
[1737767505036,0.48735,3283.2,3283.1,1.4617]
[1737767505336,0.48736,3283.1,3283.0,3.2078]
[1737767506129,0.00456635,3283.3,3282.7,1.4329]
[1737767506331,0.48741,3282.8,3282.7,1.4329]
[1737767508034,0.48741,3282.8,3282.7,2.8674]
[1737767508235,0.00456635,3283.3,3282.7,2.8674]
[1737767508436,0.00456635,3283.3,3282.9,3.2078]
[1737767508843,0.48737,3283.1,3282.9,3.69519]
[1737767509037,0.48735,3283.2,3282.9,3.69519]
[1737767509445,0.48737,3283.1,3282.9,3.69519]
[1737767509840,0.48736,3283.2,3282.9,3.69519]
[1737767510447,0.48737,3283.1,3282.9,3.69519]
[1737767510649,0.48737,3283.1,3282.9,3.2078]
[1737767511046,0.48738,3283.0,3282.9,3.2078]
[1737767511252,0.48739,3282.9,3282.8,0.00206664]
[1737767511747,0.00456635,3283.3,3282.8,0.00206664]
[1737767511944,0.48739,3283.0,3282.8,0.48947664]
[1737767512143,0.48739,3283.0,3282.9,3.2078]
[1737767513843,0.00456635,3283.3,3282.9,3.2078]
[1737767514045,0.48737,3283.1,3282.9,3.2078]
[1737767514249,0.48736,3283.2,3282.9,3.2078]
[1737767514445,0.48736,3283.2,3282.9,3.69519]
[1737767515457,0.00456635,3283.3,3282.9,3.69519]
[1737767515458,0.48738,3283.0,3282.9,3.2078]
[1737767517148,0.00456635,3283.3,3282.9,3.2078]
[1737767517356,0.00456635,3283.3,3283.1,0.48735]
[1737767517555,0.49189635,3283.3,3283.2,1.4519]
[1737767517859,6.3607642,3283.3,3283.2,1.4519]
[1737767519960,5.8734342,3283.3,3283.2,1.4519]
[1737767520158,5.8734342,3283.3,3283.2,1.93925]
[1737767520354,0.00456635,3283.3,3283.2,1.93925]
[1737767521152,0.49189635,3283.3,3283.2,1.4519]
[1737767521858,0.00456635,3283.3,3283.2,1.4519]
[1737767522161,5.86886785,3283.6,3283.5,0.4873]
[1737767522349,5.86886785,3283.6,3283.5,3.6951]
[1737767523354,1.47696785,3283.6,3283.5,3.6951]
[1737767523556,0.00456635,3283.9,3283.5,3.2078]
[1737767523758,0.00456635,3283.9,3283.8,0.48726]
[1737767525058,4.85130777,3284.6,3284.5,0.48716]
[1737767525354,4.85130777,3284.6,3284.5,3.69496]
[1737767525859,4.85130777,3284.6,3284.5,3.2078]
[1737767526257,5.33844777,3284.6,3284.5,3.2078]
[1737767527261,0.48726,3283.8,3283.7,3.2078]
[1737767527758,3.56196093,3284.3,3283.1,1.3985]
[1737767527759,0.48733,3283.3,3283.1,1.3985]
[1737767528158,2.7243,3283.7,3283.1,1.3985]
[1737767528354,1.3369,3283.6,3283.1,1.3985]
[1737767528554,1.3369,3283.6,3283.1,1.88586]
[1737767528760,0.48732,3283.4,3283.1,1.88586]
[1737767529259,0.48731,3283.5,3283.1,1.3985]
[1737767529454,0.48731,3283.5,3283.2,0.48735]
[1737767529654,0.48731,3283.5,3283.1,1.3985]
[1737767529855,0.48726,3283.8,3283.5,0.48729]
[1737767530053,1.3643,3284.0,3283.4,3.69511]
[1737767530260,0.48727,3283.8,3283.4,3.69511]
[1737767530667,0.48729,3283.6,3283.4,3.2078]
[1737767531364,0.4873,3283.5,3283.4,3.2078]
[1737767531959,0.48729,3283.6,3283.4,3.2078]
[1737767532365,0.48736,3283.1,3283.0,3.2078]
[1737767533956,3.29434,3283.3,3283.0,3.69517]
[1737767534264,0.48736,3283.2,3283.0,3.2078]
[1737767535160,0.48736,3283.2,3283.1,1.4338]
[1737767535764,1.4126,3283.8,3283.1,1.4338]
[1737767535953,0.4873,3283.5,3283.4,3.2078]
[1737767539759,1.4126,3283.8,3283.0,3.2078]
[1737767539959,0.48736,3283.1,3283.0,3.2078]
[1737767541465,0.48739,3282.9,3282.8,0.00206664]
[1737767541867,0.48742,3282.7,3281.9,1.3834]
[1737767546578,3.69522,3282.7,3281.9,1.3834]
[1737767547871,0.48742,3282.7,3282.3,3.2078]
[1737767548066,0.48742,3282.7,3282.4,1.4242]
[1737767551662,0.48742,3282.7,3282.3,3.2078]
[1737767554078,0.48742,3282.7,3282.1,1.3419]
[1737767554468,0.48742,3282.7,3282.1,1.82941]
[1737767556375,0.48742,3282.7,3282.1,1.3419]
[1737767558280,0.48742,3282.7,3282.3,3.2078]
[1737767559179,0.48763,3281.3,3281.2,3.2078]
[1737767559373,5.55176093,3281.6,3280.8,7.97798925]
[1737767559683,0.48769,3280.9,3280.8,7.97798925]
[1737767560775,0.48769,3280.9,3280.8,4.77018925]
[1737767561772,0.00456635,3281.2,3280.8,7.97798925]
[1737767562580,0.00456635,3281.2,3280.9,0.48768]
[1737767562780,0.00456635,3281.2,3280.8,3.2078]
[1737767562975,0.00456635,3281.2,3281.1,0.48766]
[1737767563784,4.78868287,3282.5,3281.1,0.48766]
[1737767563785,0.48751,3282.1,3281.7,0.48756]
[1737767563974,1.4681,3282.4,3281.7,3.2078]
[1737767564170,0.48756,3281.8,3281.7,3.2078]
[1737767565074,0.00456635,3282.1,3281.7,3.2078]
[1737767565281,0.00456635,3282.1,3282.0,0.48753]
[1737767566976,0.00456635,3282.1,3282.0,1.94383]
[1737767571783,1.83609,3283.0,3282.7,0.48742]
[1737767571986,1.83609,3283.0,3282.7,3.69522]
[1737767572486,1.83609,3283.0,3282.7,3.2078]
[1737767572686,0.48739,3282.9,3282.8,1.439]
[1737767574985,0.00456635,3283.2,3282.8,1.439]
[1737767575290,0.00456635,3283.2,3283.0,0.48737]
[1737767575992,0.00456635,3283.2,3282.8,2.7734]
[1737767576185,0.00456635,3283.2,3283.1,0.48736]
[1737767577783,0.00456635,3283.2,3282.8,2.7734]
[1737767577983,0.00456635,3283.2,3283.0,0.48737]
[1737767578190,0.00456635,3283.2,3283.1,0.48736]
[1737767580289,0.00456635,3283.2,3283.1,3.69516]
[1737767580685,1.4545,3284.2,3283.1,8.2078]
[1737767580994,8.21641499,3284.4,3282.9,3.36796093]
[1737767580995,8.21641499,3284.4,3284.3,0.48718]
[1737767581190,8.21641499,3284.4,3284.3,3.69498]
[1737767583790,8.21641499,3284.4,3284.3,5.04558]
[1737767583988,0.00456635,3284.7,3284.3,5.9122]
[1737767584187,0.00456635,3284.7,3284.6,0.48714]
[1737767586601,0.00456635,3284.7,3284.5,2.34396093]
[1737767586802,0.00456635,3284.7,3284.6,0.48714]
[1737767591000,0.00456635,3284.7,3284.6,8.50014]
[1737767592002,6.35e-06,3284.7,3284.6,8.50014]
[1737767592401,6.35e-06,3284.7,3284.6,8.73971214]
[1737767592600,6.35e-06,3284.7,3284.6,3.50014]
[1737767593514,6.35e-06,3284.7,3284.6,8.50014]
[1737767596016,1.467,3285.7,3285.6,0.48699]
[1737767596217,1.467,3285.7,3285.6,3.69479]
[1737767597617,1.467,3285.7,3285.6,3.2078]
[1737767598018,1.467,3285.7,3285.6,3.69479]
[1737767601620,0.00302086,3286.0,3285.9,0.48695]
[1737767601826,0.00302086,3286.0,3285.8,2.83092093]
[1737767602826,0.00302086,3286.0,3285.8,2.34396093]
[1737767603125,0.48697,3285.8,3285.6,3.2078]
[1737767603331,2.8411,3285.7,3285.6,3.2078]
[1737767604032,0.00302086,3286.0,3285.9,0.48695]
[1737767604233,0.00302086,3286.0,3285.9,2.34396093]
[1737767605232,1.44192086,3286.0,3285.9,2.34396093]
[1737767606131,1.44192086,3286.0,3285.7,0.48697]
[1737767606132,1.92886086,3286.0,3285.7,0.48697]
[1737767606333,1.4295,3285.9,3285.7,0.48697]
[1737767606534,1.91645,3285.9,3285.6,7.42444093]
[1737767606734,1.4295,3285.9,3285.6,3.2078]
[1737767607035,0.48698,3285.7,3285.6,3.2078]
[1737767607231,3.2078,3285.8,3285.0,5.55176093]
[1737767607431,1.3655,3285.6,3285.0,5.55176093]
[1737767607630,0.48704,3285.3,3285.0,5.55176093]
[1737767607827,0.48704,3285.3,3285.0,6.03884093]
[1737767608231,1.3655,3285.6,3285.0,6.03884093]
[1737767608432,0.48702,3285.5,3285.2,0.48705]
[1737767608635,0.48703,3285.4,3285.0,6.03883093]
[1737767608835,0.48703,3285.4,3285.1,0.48706]
[1737767609334,0.48702,3285.5,3285.1,0.48706]
[1737767609936,1.3655,3285.6,3285.0,5.55176093]
[1737767610233,1.4295,3285.9,3285.3,2.34396093]
[1737767610535,1.4295,3285.9,3285.4,4.6195]
[1737767610732,1.44192086,3286.0,3285.6,2.34396093]
[1737767611028,1.44192086,3286.0,3285.8,0.48696]
[1737767611230,1.44192086,3286.0,3285.7,0.48697]
[1737767611436,1.44192086,3286.0,3285.6,2.83094093]
[1737767611437,0.48695,3285.9,3285.6,2.83094093]
[1737767611829,1.44192086,3286.0,3285.6,2.83094093]
[1737767611830,1.44192086,3286.0,3285.6,2.34396093]
[1737767612031,1.44192086,3286.0,3285.8,0.48696]
[1737767612334,1.92886086,3286.0,3285.7,0.48697]
[1737767612632,1.44192086,3286.0,3285.7,0.48697]
[1737767613439,0.48696,3285.9,3285.6,2.34396093]
[1737767613623,1.44192086,3286.0,3285.6,2.34396093]
[1737767613831,1.92886086,3286.0,3285.6,2.83094093]
[1737767614029,0.48695,3285.9,3285.6,2.83094093]
[1737767614634,1.92886086,3286.0,3285.6,2.83094093]
[1737767615336,0.48695,3285.9,3285.6,2.83094093]
[1737767615532,1.44192086,3286.0,3285.9,0.48695]
[1737767616839,0.00302086,3286.0,3285.9,0.48695]
[1737767617636,0.00302086,3286.0,3285.9,2.83091093]
[1737767618135,0.00302086,3286.0,3285.9,2.34396093]
[1737767618731,0.00302086,3286.0,3285.9,2.83091093]
[1737767621439,0.00302086,3286.0,3285.9,4.28961093]
[1737767622938,2.898,3287.0,3286.7,0.48682]
[1737767623239,4.2996,3287.0,3286.7,0.48682]
[1737767623634,4.2996,3287.0,3286.5,2.34396093]
[1737767624035,0.48688,3286.4,3286.2,2.34396093]
[1737767624439,1.4016,3286.3,3286.2,2.34396093]
[1737767626141,2.898,3287.0,3286.2,2.34396093]
[1737767626442,2.898,3287.0,3286.5,2.83081093]
[1737767626443,1.4001,3286.9,3286.5,2.83081093]
[1737767626638,1.88691,3286.9,3286.5,2.83081093]
[1737767627441,1.4001,3286.9,3286.5,2.34396093]
[1737767627641,1.4001,3286.9,3286.6,0.48684]
[1737767627840,1.4001,3286.9,3286.7,1.3701]
[1737767628841,3.69456,3287.2,3286.9,0.4868]
[1737767629148,3.2078,3287.2,3286.8,2.34396093]
[1737767629543,0.48675,3287.3,3286.9,0.48679]
[1737767630645,0.48673,3287.4,3286.8,2.34396093]
[1737767630849,0.48673,3287.4,3287.0,0.48678]
[1737767631346,0.48674,3287.3,3286.8,2.34396093]
[1737767631548,0.48676,3287.2,3286.8,2.34396093]
[1737767631747,0.48676,3287.2,3286.8,2.83077093]
[1737767632649,1.3481,3287.5,3286.8,2.34396093]
[1737767632845,0.4868,3286.9,3286.7,4.5779]
[1737767633345,0.48687,3286.4,3286.3,1.4059]
[1737767633943,4.6623,3286.8,3286.2,5.55176093]
[1737767634148,0.48689,3286.3,3286.2,5.55176093]
[1737767634655,0.48692,3286.1,3286.0,0.00456635]
[1737767634948,3.2078,3286.3,3286.0,0.00456635]
[1737767635150,0.4869,3286.2,3286.0,0.00456635]
[1737767635343,3.2078,3286.3,3286.0,0.00456635]
[1737767635651,0.48692,3286.1,3286.0,0.00456635]
[1737767636744,1.3315,3286.2,3286.0,0.00456635]
[1737767636947,0.48689,3286.3,3286.0,0.00456635]
[1737767637446,0.48687,3286.5,3286.0,0.49149635]
[1737767637647,0.48689,3286.3,3286.0,0.00456635]
[1737767640152,1.3411,3286.4,3286.0,0.00456635]
[1737767640352,1.82798,3286.4,3286.0,0.49149635]
[1737767640753,1.3411,3286.4,3286.0,0.00456635]
[1737767640951,1.3315,3286.6,3286.2,2.34396093]
[1737767641347,0.48686,3286.5,3286.2,2.34396093]
[1737767642052,1.3315,3286.6,3286.2,2.34396093]
[1737767642257,1.4545,3286.8,3286.3,3.69468]
[1737767642258,0.48684,3286.7,3286.3,3.69468]
[1737767642452,0.48684,3286.7,3286.4,1.4171]
[1737767642758,1.93009,3287.0,3286.6,0.48684]
[1737767642954,3.2078,3287.1,3286.8,2.34396093]
[1737767643349,3.2078,3287.1,3286.8,2.83077093]
[1737767643657,3.69457,3287.1,3286.8,2.34396093]
[1737767643848,0.48679,3287.0,3286.8,2.34396093]
[1737767646853,4.6298,3287.2,3286.8,2.34396093]
[1737767647049,1.422,3287.2,3286.8,2.34396093]
[1737767647254,1.90876,3287.2,3286.8,2.83076093]
[1737767647456,1.90876,3287.2,3286.9,1.4448]
[1737767647760,1.90876,3287.2,3287.0,1.336]
[1737767647960,1.422,3287.2,3287.0,1.336]
[1737767648159,0.48673,3287.4,3287.0,1.82278]
[1737767648661,0.48673,3287.4,3287.0,1.336]
[1737767648862,0.48673,3287.4,3287.0,1.82278]
[1737767649554,1.4433,3287.5,3287.0,1.336]
[1737767649765,1.4433,3287.5,3287.0,1.82278]
[1737767649955,1.4433,3287.5,3287.0,1.336]
[1737767650155,0.48675,3287.3,3287.0,1.336]
[1737767650350,0.4868,3286.9,3286.8,2.34396093]
[1737767650763,0.48678,3287.1,3286.8,2.34396093]
[1737767650964,1.4433,3287.5,3286.9,1.3423]
[1737767651156,0.48676,3287.2,3286.9,1.82909]
[1737767651355,1.4433,3287.5,3286.9,1.3423]
[1737767651555,1.93002,3287.5,3287.1,2.83073093]
[1737767651756,1.93002,3287.5,3287.2,1.3953]
[1737767651952,0.48674,3287.4,3287.2,1.3953]
[1737767652365,1.4433,3287.5,3287.2,1.3953]
[1737767652665,0.48673,3287.4,3287.2,1.3953]
[1737767652861,0.48672,3287.5,3287.2,1.88205]
[1737767653067,3.2078,3287.6,3287.4,0.48672]
[1737767653258,0.48669,3287.7,3287.4,0.48672]
[1737767654267,0.48669,3287.7,3287.4,2.83068093]
[1737767654759,2.8147,3287.8,3287.7,0.48668]
[1737767654760,1.3665,3287.8,3287.7,0.48668]
[1737767655068,0.48665,3287.9,3287.7,2.34396093]
[1737767655260,0.48665,3287.9,3287.8,1.4473]
[1737767656058,3.2078,3288.2,3287.5,1.3445]
[1737767656266,0.4867,3287.6,3287.5,1.3445]
[1737767657067,3.2078,3288.2,3287.5,1.3445]
[1737767657756,0.48668,3287.7,3287.5,1.3445]
[1737767658268,3.2078,3288.2,3287.5,1.3445]
[1737767658661,0.48669,3287.7,3287.5,1.3445]
[1737767659458,0.4867,3287.6,3287.5,1.3445]
[1737767659762,0.48671,3287.5,3287.4,2.34396093]
[1737767659960,3.2078,3288.2,3287.3,1.3835]
[1737767660160,3.2078,3288.2,3287.1,5.55176093]
[1737767660161,3.2078,3287.8,3287.1,5.55176093]
[1737767660361,0.48676,3287.2,3287.1,5.55176093]
[1737767660561,4.3892,3287.7,3287.1,5.55176093]
[1737767660761,0.48675,3287.3,3287.1,5.55176093]
[1737767662167,0.48675,3287.3,3287.1,2.34396093]
[1737767663973,0.00184654,3287.2,3287.1,2.34396093]
[1737767664869,0.00184654,3287.2,3286.7,3.2078]
[1737767665174,0.48681,3286.8,3286.6,1.3865]
[1737767666073,0.4868,3286.9,3286.6,1.3865]